Cogmind - Beta 17 @@@ ROGUE MODE // 2026.07.29 @ 04:18:59 Player: 4R-ZE3 Result: Destroyed by H-88 Terminator with KE Penetrator Performance ------------- Evolutions (8) 4000 Regions Visited (16) 3200 Robots Destroyed (99) 495 Value Destroyed (4848) 4848 Prototype IDs (24) 480 Alien Tech Used (1) 200 Bonus (2005) 2005 TOTAL SCORE: 15228 Bonus ------- High Alert Combat Kills 230 Registered with UFD 300 Met Optimus in HQ 500 Met Imprinter 300 Met Optimus at Protoforge 1000 Friendly Fire -325 Cogmind --------- Core Integrity 0/1450 Matter 175/300 Energy 60/720 System Corruption 15% Temperature Cool (0) Movement Treading (140) Location -2/Protoforge Parts ------- > --- POWER (3) -------- Light Quantum Reactor Light Quantum Reactor Light Quantum Reactor > --- PROPULSION (8) --- Overtuned Medium Treads Overtuned Medium Treads Overtuned Medium Treads Overtuned Medium Treads Overtuned Huge Scrapsphere > --- UTILITY (10) ----- Scrap Suit Experimental Heat Sink Energy Well Experimental Optical Array Experimental Targeting Computer Experimental Core Analyzer Improved Armor Integrity Analyzer Makeshift Medium Armor Plating Improved Remote Force Field > --- WEAPON (2) ------- Overtuned Railgun Helical Railgun > --- INVENTORY (5) ---- Experimental Heat Sink KE Penetrator KE Penetrator Overtuned Coil Gun Helical Railgun Peak State ------------ > --- POWER ------------ Light Quantum Reactor Light Quantum Reactor Light Quantum Reactor > --- PROPULSION ------- Improved Gravmag System Improved Gravmag System Linear Gravjet Improved Linear Gravjet Improved Linear Gravjet Improved Linear Gravjet Improved Linear Gravjet Cooled Antigrav System > --- UTILITY ---------- Advanced Cooling System Large Storage Unit Improved Trap Scanner Experimental Signal Interpreter Advanced Terrain Scanner Advanced Terrain Scan Processor Advanced Reaction Control System Advanced Cloaking Device Advanced Hacking Suite Advanced System Shield > --- WEAPON ----------- Sigix Broadsword > --- INVENTORY -------- Improved Linear Gravjet Cooled Linear Gravjet Experimental Heat Sink Advanced Sensor Array Layered Medium Armor Plating Graphene Brace Improved Hacking Suite Advanced Component Analysis Suite Enhanced Force Lance Enhanced Force Lance [Rating: 172] Favorites ----------- Power Angular Momentum Engine Engine Angular Momentum Engine Power Core Light Fission Core Reactor Light Quantum Reactor Propulsion Light Treads Treads Light Treads Leg Flexi-carbon Leg Wheel Overtuned Huge Scrapsphere Hover Unit Improved Linear Gravjet Flight Unit Biomechanical Wings Utility High-capacity Storage Unit Device Advanced Heat Sink Storage High-capacity Storage Unit Processor Target Analyzer Hackware Advanced System Shield Protection Hardened Light Armor Plating Weapon Autogun Energy Gun Medium Laser Ballistic Gun Autogun Special Weapon Mining Laser Slashing Weapon Greatsword Piercing Weapon Enhanced Force Lance Build | -11 -10 -10 -8 -6 -6 -6 -6 -5 -5 -4 -4 -4 -3 -2 -2 -2 ------- Run | Yrd Mat Sub Scr Fac Low Low Zio Pro Fac Fac Was Fac Res Res Qua Frg Slots Evolved 16 | . . . . 8 . . . . 2 2 . . 2 2 . . Power 2 | . . . . 1 . . . . . . . . . 1 . . Propulsion 6 | . . . . 4 . . . . 1 1 . . . . . . Utility 8 | . . . . 3 . . . . 1 1 . . 2 1 . . Weapon . | . . . . . . . . . . . . . . . . . Parts Attached 185 | 7 9 13 4 21 1 2 4 . 28 4 . 7 18 6 2 59 Power 30 | 1 1 4 1 2 . 1 1 . 2 . . 1 2 4 . 10 Engine 11 | 1 1 3 1 1 . . 1 . . . . 1 . 1 . 1 Core 6 | . . 1 . 1 . 1 . . 2 . . . . . . 1 Reactor 13 | . . . . . . . . . . . . . 2 3 . 8 Propulsion 62 | 2 . 3 2 8 . 1 1 . 12 2 . 6 5 . . 20 Treads 13 | 2 . 3 1 . . . . . . . . . . . . 7 Leg 18 | . . . . 7 . 1 1 . . . . . . . . 9 Wheel 4 | . . . 1 . . . . . . . . . . . . 3 Hover 17 | . . . . . . . . . 3 2 . 6 5 . . 1 Flight 10 | . . . . 1 . . . . 9 . . . . . . . Utility 60 | 2 4 2 . 7 . . 1 . 11 2 . . 7 2 1 21 Device 23 | 1 1 . . 3 . . . . 4 1 . . 4 . 1 8 Storage 7 | 1 2 1 . . . . . . . . . . . 1 . 2 Processor 16 | . 1 . . 3 . . 1 . 3 . . . 2 . . 6 Hackware 5 | . . . . . . . . . 3 . . . . 1 . 1 Protection 9 | . . 1 . 1 . . . . 1 1 . . 1 . . 4 Artifact . | . . . . . . . . . . . . . . . . . Weapon 33 | 2 4 4 1 4 1 . 1 . 3 . . . 4 . 1 8 Energy Gun 5 | 1 1 1 . . 1 . . . . . . . . . . 1 Energy Cannon . | . . . . . . . . . . . . . . . . . Ballistic Gun 19 | 1 2 3 1 4 . . 1 . . . . . . . . 7 Ballistic Cannon . | . . . . . . . . . . . . . . . . . Launcher . | . . . . . . . . . . . . . . . . . Special Weapon 1 | . 1 . . . . . . . . . . . . . . . Impact Weapon . | . . . . . . . . . . . . . . . . . Slashing Weapon 2 | . . . . . . . . . 1 . . . . . 1 . Piercing Weapon 6 | . . . . . . . . . 2 . . . 4 . . . Special Melee Weapon . | . . . . . . . . . . . . . . . . . Unidentified Prototypes 12 | . 1 . . 2 . . . . 1 . . . . . 1 7 Parts Lost 66 | . 1 7 . 10 3 2 . . 12 . . . . . . 31 Power 9 | . . 2 . 1 1 1 . . 1 . . . . . . 3 Propulsion 32 | . . 3 . 3 1 1 . . 8 . . . . . . 16 Utility 12 | . . 1 . 4 . . . . 1 . . . . . . 6 Weapon 13 | . 1 1 . 2 1 . . . 2 . . . . . . 6 Highest Loss Streak 8 | . 1 3 . 7 2 2 . . 7 . . . . . . 8 To Critical Strikes 1 | . . . . . . . . . . . . . . . . 1 Average Backups 14 | 3 12 18 19 17 18 17 17 17 4 4 5 4 4 5 7 4 Power 1 | . 1 1 2 1 2 1 1 . . . 1 . . . . . Propulsion 2 | 1 1 2 2 5 7 7 7 6 . . . . 1 2 1 . Utility 5 | . 4 8 8 5 5 5 5 7 3 4 4 4 2 3 4 2 Weapon 4 | . 4 6 6 4 4 4 3 1 . . . . . . . 1 Tool/Special . | . . . . . . . . . . . . . . . . . Unused Backups 45 | . 5 2 3 4 6 . 2 1 5 1 . 2 7 . 1 6 Power 5 | . . 1 2 . 1 . . . 1 . . . . . . . Propulsion 11 | . 3 . . 2 . . . . . . . . 4 . 1 1 Utility 18 | . 1 1 1 1 4 . . 1 3 1 . 2 2 . . 1 Weapon 11 | . 1 . . 1 1 . 2 . 1 . . . 1 . . 4 Tool/Special . | . . . . . . . . . . . . . . . . . Average Slot Usage (%) 87 | . 99 99 87 83 81 80 92 93 73 73 78 87 98 97 97 65 Engine 6 | . 14 10 6 6 6 1 5 6 1 3 . 1 . . . 1 Core 1 | . . 2 . 2 . 4 6 6 4 5 5 5 . . . . Reactor 1 | . . . . . . . . . . . . . 8 11 13 6 Treads 15 | . 28 27 27 7 . . . . . . . . . . . 5 Leg 6 | . . . . 14 28 26 32 33 . . . . . . . 5 Hover 3 | . . . . . . . . . 3 7 15 27 38 34 34 4 Flight 1 | . . . . 1 . . . . 24 15 15 10 . . . . Device 7 | . 13 4 . 7 6 6 6 6 6 12 15 15 24 22 21 12 Storage 8 | . 14 14 14 6 6 6 6 6 . . . . . . 3 1 Processor 6 | . . . . 9 20 20 20 20 9 10 5 5 7 8 8 11 Hackware 1 | . . . . . . . . . 9 10 10 10 4 5 8 1 Protection 5 | . . 8 14 4 . . . . 2 . 5 5 3 4 . 3 Energy Gun 1 | . 2 4 . . 3 6 2 . . . . . . . . . Ballistic Gun 14 | . 23 16 23 12 8 6 9 13 . . . . . . . 4 Special Weapon 1 | . 1 7 . . . . . . . . . . . . . . Peak Build Rating 172 | 9 12 14 20 67 68 61 72 72 76 91 87 101 141 156 172 172 Average Rating 46 | 6 9 11 15 43 57 57 70 71 65 79 87 95 129 151 161 115 On Entrance 68 | . 9 9 13 16 67 56 58 72 71 65 87 87 99 139 155 169 Avg Prop Armor Cover (%) 10 | . . . 11 4 . . . . 18 8 7 10 2 . . 14 Naked Turns 59 | . . . . . . . . . . . . . . . . 59 Heaviest Build 90 | 15 49 57 65 82 70 61 59 59 61 19 19 21 60 80 89 90 Greatest Support 205 | 40 40 40 40 111 111 96 116 116 116 19 19 83 86 86 89 205 Greatest Overweight (x) 4 | . 1 1 3 4 . . . . 2 . . 2 . . 1 4 Average Overweight (x) . | . . 1 1 . . . . . . . . . . . . . Largest Inventory Capacity 20 | 8 20 20 20 20 20 20 20 20 20 5 5 5 5 15 15 15 Average Capacity 16 | 7 16 20 20 20 20 20 20 20 5 5 5 5 5 5 13 6 Most Carried 20 | 6 20 20 20 20 20 20 20 20 20 5 5 5 5 5 10 15 Average Carried 14 | 3 12 19 19 17 19 19 19 19 5 4 5 4 4 4 7 5 Final Capacity 20 | 8 20 20 20 20 20 20 20 20 5 5 5 5 5 5 15 5 Final Carried 20 | 6 19 20 18 20 20 20 20 20 4 5 5 5 5 5 9 5 Scrap Suit Usage (%) 1 | . . . . . . . . . . . . . . . . 14 Parts Cannibalized 10 | . . . . . . . . . . . . . . . . 10 Class Distribution -------------------- 50% | Mutant 27% | Scavenger-Mutant 4% | Scavenger-Scrapper 3% | Hacker-Mutant 3% | Scout Dominant Class ---------------- Mutant | -10/Materials Mutant | -10/Subcaves Mutant | -8/Scraptown Scavenger-Mutant | -6/Factory Scavenger-Mutant | -6/Lower Caves Scavenger-Mutant | -6/Lower Caves Scavenger-Mutant | -6/Zion Scavenger-Mutant | -5/Proximity Caves Hacker-Mutant | -5/Factory Hacker-Scout | -4/Factory Hacker-Scout | -4/Waste Hacker-Scout | -4/Factory Scout | -3/Research Scout | -2/Research Hacker-Ninja | -2/Quarantine Scavenger-Scrapper | -2/Protoforge Resources | -11 -10 -10 -8 -6 -6 -6 -6 -5 -5 -4 -4 -4 -3 -2 -2 -2 ----------- Run | Yrd Mat Sub Scr Fac Low Low Zio Pro Fac Fac Was Fac Res Res Qua Frg Matter Collected 4439 | 242 325 322 73 509 180 68 40 36 280 . . . 170 189 . 2005 Remotely . | . . . . . . . . . . . . . . . . . Salvage Created 5295 | 145 436 353 . 604 72 148 . 89 568 . . . . 189 . 2691 Parts 268 | 4 33 21 . 35 7 4 . 6 31 . . . . 12 . 115 Haulers Intercepted 3 | . 1 . . 1 . . . . . . . . . 1 . . Recyclers Shooed 1 | . . . . . . . . . 1 . . . . . . . Parts Field Recycled . | . . . . . . . . . . . . . . . . . Retrieved Matter . | . . . . . . . . . . . . . . . . . Parts Self-Destructed 18 | . . 4 . . 7 3 . 4 . . . . . . . . Prevented . | . . . . . . . . . . . . . . . . . Parts Restored . | . . . . . . . . . . . . . . . . . Kills | -11 -10 -10 -8 -6 -6 -6 -6 -5 -5 -4 -4 -4 -3 -2 -2 -2 ------- Run | Yrd Mat Sub Scr Fac Low Low Zio Pro Fac Fac Was Fac Res Res Qua Frg Combat Hostiles Destroyed 80 | . 13 10 . 8 2 2 . 4 8 . . . . . . 33 Melee 9 | . . . . . . . . . 8 . . . . . . 1 Guns 71 | . 13 10 . 8 2 2 . 4 . . . . . . . 32 Classes Destroyed 20 | 2 3 1 . 3 . . . . 3 . . . . 1 . 7 Worker 2 | . . . . . . . . . . . . . . 2 . . Builder 2 | . . . . 1 . . . . . . . . . 1 . . Tunneler 4 | 4 . . . . . . . . . . . . . . . . Hauler 3 | . 1 . . 1 . . . . . . . . . 1 . . Recycler 1 | 1 . . . . . . . . . . . . . . . . Operator 4 | . . . . . . . . . 3 . . . . 1 . . Watcher 2 | . . . . . . . . . 1 . . . . . . 1 Swarmer 12 | . 6 . . . 1 . . 4 . . . . . . . 1 Saboteur 2 | . . . . . . . . . . . . . . . . 2 Grunt 18 | . 7 . . 3 . 2 . . 3 . . . . . . 3 Brawler 4 | . . . . . . . . . . . . . . . . 4 Duelist 2 | . . . . . . . . . . . . . . . . 2 Protector 4 | . . . . . . . . . . . . . . . . 4 Sentry 3 | . . . . . . . . . 2 . . . . . . 1 Hunter 8 | . . . . 3 . . . . . . . . . . . 5 Programmer 10 | . . . . 2 1 . . . 3 . . . . . . 4 Hotshot 2 | . . . . . . . . . . . . . . . . 2 Striker 2 | . . . . . . . . . . . . . . . . 2 Executioner 3 | . . . . . . . . . . . . . . . . 3 Subdweller 10 | . . 10 . . . . . . . . . . . . . . Scrapoid 1 | . . . . . . . . . . . . . . . . 1 Best Kill Streak 5 | 4 3 2 . 2 1 2 . 4 3 . . . . 2 . 5 Combat Bots Only 5 | . 3 2 . 1 1 2 . 4 3 . . . . . . 5 Max Kills in Single Turn 2 | 1 1 1 . 1 1 1 . 2 1 . . . . 1 . 2 Gunslinging 1 | . . . . . . . . 1 . . . . . . . 1 Exploded . | . . . . . . . . . . . . . . . . . Melee 1 | . . . . . . . . . 1 . . . . . . 1 Uniques/NPCs Destroyed . | . . . . . . . . . . . . . . . . . Combat | -11 -10 -10 -8 -6 -6 -6 -6 -5 -5 -4 -4 -4 -3 -2 -2 -2 -------- Run | Yrd Mat Sub Scr Fac Low Low Zio Pro Fac Fac Was Fac Res Res Qua Frg Hostile Shots Fired 979 | . 66 63 . 140 20 22 . 15 96 . . 5 6 14 3 529 Missed 329 | . 17 19 . 32 9 6 . 3 33 . . 4 2 8 2 194 Hits 650 | . 49 44 . 108 11 16 . 12 63 . . 1 4 6 1 335 Melee 2 | . . . . . . . . . . . . . . . . 2 Projectile 648 | . 49 44 . 108 11 16 . 12 63 . . 1 4 6 1 333 AOE 2 | . . 2 . . . . . . . . . . . . . . Critical Strikes 31 | . . 2 . 3 1 . . . 2 . . . . . . 23 Actively Blocked 2 | . . . . . . . . . . . . . . . . 2 Damage Taken 14194 | . 481 1015 . 1716 205 310 . 177 1304 . . 25 50 145 . 8766 Core 2284 | . 51 187 . 237 15 18 . . 315 . . . . 26 . 1435 Absorbed by Shields 564 | . . . . . . . . . . . . . . . . 564 Redirected to Shielding 108 | . . . . . . . . . . . . . . . . 108 Regen/Repaired (Parts) 788 | . . . . . . . 570 . . . . . . . . 218 Core Remaining (%) 73 | 100 . . 4 . . . . 68 68 . . 100 100 . . . Volleys Fired 357 | 18 43 75 . 58 7 7 . 4 . . . . . . . 145 Largest 2 | 2 2 2 . 2 2 2 . 2 . . . . . . . 2 Hottest 105 | 70 100 100 . 58 58 80 . 54 . . . . . . . 105 Shots Fired 671 | 36 86 124 . 116 14 14 . 8 . . . . . . . 273 Gun 645 | 36 85 99 . 116 14 14 . 8 . . . . . . . 273 Cannon . | . . . . . . . . . . . . . . . . . Launcher . | . . . . . . . . . . . . . . . . . Special 26 | . 1 25 . . . . . . . . . . . . . . Kinetic 556 | 18 75 64 . 116 14 7 . 8 . . . . . . . 254 Thermal 115 | 18 11 60 . . . 7 . . . . . . . . . 19 Explosive . | . . . . . . . . . . . . . . . . . Electromagnetic . | . . . . . . . . . . . . . . . . . Robot Hit Streak 31 | 9 7 31 . 13 12 7 . 3 . . . . . . . 8 Robot Miss Streak 5 | 4 5 3 . 4 1 2 . 4 . . . . . . . 4 Penetration Max 2 | . . . . 1 . . . . . . . . . . . 2 Secondary Targets 14 | . 4 1 . . . . . 1 . . . . . . . 8 Max Gunslinging Chain 1 | . 1 1 . . . . . 1 . . . . . . . 1 Shots Hit Robots 463 | 22 44 81 . 75 9 10 . 6 32 . . . . 5 . 179 Core Hits 218 | 6 24 27 . 30 2 6 . 7 14 . . . . 4 . 98 Critical Kills 9 | . . . . . 1 1 . . . . . . . . . 7 Critical Parts Destroyed 11 | . . . . 1 1 1 . . . . . . . . . 8 Critical Strikes 30 | . . 2 . 1 2 3 . . 4 . . . . 1 . 17 Burn 2 | . . 1 . . . 1 . . . . . . . . . . Destroy 21 | . . 1 . 1 2 2 . . . . . . . . . 15 Sever 4 | . . . . . . . . . 3 . . . . . . 1 Impale 3 | . . . . . . . . . 1 . . . . 1 . 1 Melee Attacks 105 | . . . . . . . . . 64 2 . . 5 8 6 20 Impact . | . . . . . . . . . . . . . . . . . Slashing 48 | . . . . . . . . . 31 . . . . . 4 13 Piercing 57 | . . . . . . . . . 33 2 . . 5 8 2 7 Sneak Attacks 10 | . . . . . . . . . 5 . . . . 5 . . Combat Hostiles 2 | . . . . . . . . . 2 . . . . . . . Follow-up Attacks 1 | . . . . . . . . . 1 . . . . . . . Damage Inflicted 12607 | 266 511 1067 . 1157 220 172 . 121 1652 . . . . 753 . 6688 Guns 9533 | 266 511 1067 . 1147 220 172 . 121 . . . . . . . 6029 Cannons . | . . . . . . . . . . . . . . . . . Explosions . | . . . . . . . . . . . . . . . . . Melee 3064 | . . . . . . . . . 1652 . . . . 753 . 659 Ramming 10 | . . . . 10 . . . . . . . . . . . . Kinetic 8568 | 129 459 607 . 1147 220 109 . 121 . . . . . . . 5776 Thermal 965 | 137 52 460 . . . 63 . . . . . . . . . 253 Explosive . | . . . . . . . . . . . . . . . . . Electromagnetic . | . . . . . . . . . . . . . . . . . Impact . | . . . . . . . . . . . . . . . . . Slashing 1488 | . . . . . . . . . 1005 . . . . . . 483 Piercing 1576 | . . . . . . . . . 647 . . . . 753 . 176 Highest Corruption 15 | . 3 3 . 1 1 1 1 . 14 . 6 6 . . . 15 Average Corruption 4 | . 3 3 . 1 1 1 1 . 11 . 6 6 . . . 7 Corruption Purged . | . . . . . . . . . . . . . . . . . Corruption Blocked . | . . . . . . . . . . . . . . . . . Effects 108 | . 6 26 . 4 4 5 . . 11 . . 2 . . . 50 Message Errors 23 | . 2 6 . 1 1 1 . . 2 . . 1 . . . 9 Matter Fused 33 | . 2 7 . 3 . 4 . . 3 . . 1 . . . 13 Heat Flow Errors 10 | . . 2 . . 1 . . . 2 . . . . . . 5 Energy Discharges 9 | . . 4 . . . . . . 1 . . . . . . 4 Parts Fused 2 | . . . . . 1 . . . . . . . . . . 1 Data Loss (minor) 14 | . 1 2 . . . . . . 2 . . . . . . 9 Data Loss (major) 4 | . . 1 . . . . . . 1 . . . . . . 2 Misfires 2 | . 1 1 . . . . . . . . . . . . . . Alerts 5 | . . 3 . . 1 . . . . . . . . . . 1 Misdirections 1 | . . . . . . . . . . . . . . . . 1 Weapon Failures 5 | . . . . . . . . . . . . . . . . 5 Overload Shots . | . . . . . . . . . . . . . . . . . Overflow Damage 410 | . . . . . . . . . 144 . . . . 117 . 149 Projectiles . | . . . . . . . . . . . . . . . . . Explosions . | . . . . . . . . . . . . . . . . . Melee 410 | . . . . . . . . . 144 . . . . 117 . 149 Knockbacks . | . . . . . . . . . . . . . . . . . Impact . | . . . . . . . . . . . . . . . . . Kinetic . | . . . . . . . . . . . . . . . . . Secondary . | . . . . . . . . . . . . . . . . . Self-Inflicted Damage 5 | . . . . 5 . . . . . . . . . . . . Shots . | . . . . . . . . . . . . . . . . . Rammed 1 | . . . . 1 . . . . . . . . . . . . Targets Rammed 1 | . . . . 1 . . . . . . . . . . . . Kicked . | . . . . . . . . . . . . . . . . . Crushed . | . . . . . . . . . . . . . . . . . Highest Temperature 247 | 81 36 107 . 195 247 2 . . 245 . . 40 168 186 . 238 Average Temperature 48 | 31 14 20 . 61 119 1 . . 107 . . 27 56 52 . 99 Received Heat Transfer 1043 | . 105 69 . 162 54 132 . . 90 . . . . 9 . 422 Siege Activations . | . . . . . . . . . . . . . . . . . Martial Activations . | . . . . . . . . . . . . . . . . . Shielding Activations 1 | . . . . . . . . . . . . . . . . 1 Total Turns 1 | . . . . . . . . . . . . . . . . 1 Longest Duration 1 | . . . . . . . . . . . . . . . . 1 Robots Disrupted . | . . . . . . . . . . . . . . . . . Combat Hostiles . | . . . . . . . . . . . . . . . . . Robots Corrupted . | . . . . . . . . . . . . . . . . . Combat Hostiles . | . . . . . . . . . . . . . . . . . Parts Fried . | . . . . . . . . . . . . . . . . . Impact Corruptions . | . . . . . . . . . . . . . . . . . Robots Melted . | . . . . . . . . . . . . . . . . . Combat Hostiles . | . . . . . . . . . . . . . . . . . Parts Melted 2 | . . . . . . 1 . . . . . . . . . 1 Heat Transferred 2350 | 407 148 1184 . . . 259 . . . . . . . . . 352 Parts Sabotaged 3 | . . . . . . . . . . . . . . . . 3 Parts Stolen . | . . . . . . . . . . . . . . . . . Parts Stripped . | . . . . . . . . . . . . . . . . . Power Chain Reactions . | . . . . . . . . . . . . . . . . . Alert | -11 -10 -10 -8 -6 -6 -6 -6 -5 -5 -4 -4 -4 -3 -2 -2 -2 ------- Run | Yrd Mat Sub Scr Fac Low Low Zio Pro Fac Fac Was Fac Res Res Qua Frg Maximum Alert Level 2 | . . . . . . . . . 1 . . . . . . 2 Low Security (%) 88 | 100 100 . . 100 . . . . 87 100 100 100 100 100 100 63 Level 1 4 | . . . . . . . . . 12 . . . . . . 11 Level 2 6 | . . . . . . . . . . . . . . . . 24 Level 3 . | . . . . . . . . . . . . . . . . . Level 4 . | . . . . . . . . . . . . . . . . . Level 5 . | . . . . . . . . . . . . . . . . . High Security . | . . . . . . . . . . . . . . . . . Max Security . | . . . . . . . . . . . . . . . . . Peak Influence 506 | 10 90 . . 63 . . . . 231 74 14 20 101 65 32 506 Initial 60 | . . . . . . . . . 34 60 14 . . 56 30 8 Average 78 | 1 23 . . 8 . . . . 148 60 8 7 15 42 13 173 Influence Increases 3375 | 25 394 . . 238 110 95 . 105 594 31 . 40 188 143 60 1352 Destroy 0b10 Robot/C 1320 | . 260 . . 160 40 40 . 80 160 . . . . . . 580 Destroy 0b10 Robot/NC 110 | 25 5 . . 10 . . . . 20 . . . . 25 . 25 Destroy Leader 250 | . 52 . . 52 10 10 . 10 52 . . . . 2 . 62 Successful Hack 133 | . 32 . . . . . . . 26 14 . 10 . 35 . 16 Disable Machine 105 | . 15 . . . . . . . . 15 . . . . 15 60 Destroy Structure 197 | . . . . 1 . . . . 36 2 . . 8 6 15 129 Partial Spotted 225 | . . . . . . . . . 60 . . 15 15 30 15 90 Lose Combat Pursuer 1035 | . 30 . . 15 60 45 . 15 240 . . 15 165 45 15 390 Influence Decreases 2883 | 25 366 28 . 238 110 95 . 50 526 113 41 40 87 190 99 875 Entered New Map 201 | . . 14 . . . . . . 21 63 27 . . 45 24 7 Time Decay 1974 | 25 366 14 . 146 90 80 . 50 385 50 14 40 87 80 75 472 Lost Part 498 | . . . . 92 20 15 . . 120 . . . . . . 251 Purge Threat 210 | . . . . . . . . . . . . . . 65 . 145 Squads Dispatched 24 | . 2 . . 3 . . . . 9 . . . 2 2 1 5 Investigation 10 | . 2 . . 1 . . . . 3 . . . 1 . . 3 Extermination 6 | . . . . 1 . . . . 2 . . . 1 1 1 . Reinforcement 8 | . . . . 1 . . . . 4 . . . . 1 . 2 Assault . | . . . . . . . . . . . . . . . . . Garrison . | . . . . . . . . . . . . . . . . . Intercept . | . . . . . . . . . . . . . . . . . Searches Triggered . | . . . . . . . . . . . . . . . . . Construction Impeded . | . . . . . . . . . . . . . . . . . Haulers Reinforced 1 | . . . . 1 . . . . . . . . . . . . Active Scanning Responses . | . . . . . . . . . . . . . . . . . Cargo Convoy Interrupts . | . . . . . . . . . . . . . . . . . Stealth | -11 -10 -10 -8 -6 -6 -6 -6 -5 -5 -4 -4 -4 -3 -2 -2 -2 --------- Run | Yrd Mat Sub Scr Fac Low Low Zio Pro Fac Fac Was Fac Res Res Qua Frg Distress Signals 24 | . 1 . . 1 . . . . 2 . . . 3 3 . 14 Communications Jammed . | . . . . . . . . . . . . . . . . . Distress Signals . | . . . . . . . . . . . . . . . . . Times Spotted 284 | . 22 11 . 12 6 4 . 4 22 2 5 2 14 10 2 168 Peak Tracking Total 15 | . 3 2 . 4 5 3 . 5 9 2 5 1 11 11 2 15 Tactical Retreats 32 | . 1 . . 1 2 1 . 1 6 . . 1 6 2 1 10 Traps | -11 -10 -10 -8 -6 -6 -6 -6 -5 -5 -4 -4 -4 -3 -2 -2 -2 ------- Run | Yrd Mat Sub Scr Fac Low Low Zio Pro Fac Fac Was Fac Res Res Qua Frg Traps Triggered 9 | . 3 . . . . . . . 3 1 . . 1 . . 1 Indirectly . | . . . . . . . . . . . . . . . . . Trap Hack Attempts . | . . . . . . . . . . . . . . . . . Triggered . | . . . . . . . . . . . . . . . . . Disarmed . | . . . . . . . . . . . . . . . . . Reprogrammed . | . . . . . . . . . . . . . . . . . Reused . | . . . . . . . . . . . . . . . . . Traps Extracted . | . . . . . . . . . . . . . . . . . Installed . | . . . . . . . . . . . . . . . . . Triggered . | . . . . . . . . . . . . . . . . . Machines | -11 -10 -10 -8 -6 -6 -6 -6 -5 -5 -4 -4 -4 -3 -2 -2 -2 ---------- Run | Yrd Mat Sub Scr Fac Low Low Zio Pro Fac Fac Was Fac Res Res Qua Frg Machines Disabled 8 | . 1 . . . . . . . . 1 . . . . 1 5 Max in Single Turn 1 | . 1 . . . . . . . . 1 . . . . 1 1 Garrison Access 1 | . . . . . . . . . . . . . 1 . . . Machines Repaired . | . . . . . . . . . . . . . . . . . Machines Dismantled . | . . . . . . . . . . . . . . . . . Machines Sabotaged . | . . . . . . . . . . . . . . . . . Overloaded Fab Kills . | . . . . . . . . . . . . . . . . . Hacking | -11 -10 -10 -8 -6 -6 -6 -6 -5 -5 -4 -4 -4 -3 -2 -2 -2 --------- Run | Yrd Mat Sub Scr Fac Low Low Zio Pro Fac Fac Was Fac Res Res Qua Frg Machines Accessed 69 | . 8 1 7 2 1 . . . 11 2 . 1 11 9 6 10 Terminals 37 | . 7 . . 1 . . . . 3 1 . . 7 7 5 6 Fabricators . | . . . . . . . . . . . . . . . . . Repair Stations 3 | . . . . . . . . . 1 1 . . . . . 1 Recycling Units 9 | . 1 . . . . . . . 4 . . . 1 . . 3 Scanalyzers 8 | . . . . 1 . . . . 2 . . 1 2 1 1 . Garrison Access 3 | . . . . . . . . . 1 . . . 1 1 . . Total Hacks 156 | . 14 4 37 4 1 . . . 20 2 . 2 22 13 13 24 Successful 73 | . 5 4 37 1 1 . . . 6 1 . 1 4 4 3 6 Failed 83 | . 9 . . 3 . . . . 14 1 . 1 18 9 10 18 Catastrophic 30 | . 6 . . 1 . . . . 3 1 . . 9 3 3 4 Database Lockouts . | . . . . . . . . . . . . . . . . . Manual 55 | . 10 . . 2 . . 1 . 10 1 . . 9 6 7 9 Terminals 68 | . 12 . . 2 . . . . 7 1 . . 11 10 10 15 Fabricators . | . . . . . . . . . . . . . . . . . Repair Stations 5 | . . . . . . . . . 1 1 . . . . . 3 Recycling Units 18 | . 2 . . . . . . . 6 . . . 4 . . 6 Scanalyzers 18 | . . . . 2 . . . . 4 . . 2 5 2 3 . Garrison Access 5 | . . . . . . . . . 2 . . . 2 1 . . Terminal Hacks 55 | . 4 4 37 . 1 . . . . . . . . 4 . 5 Record 36 | . . 4 32 . . . . . . . . . . . . . Robot Analysis 6 | . 2 . 4 . . . . . . . . . . . . . Open Door 2 | . . . . . 1 . . . . . . . . 1 . . Branch Access Points 2 | . 1 . . . . . . . . . . . . 1 . . Garrison Index 1 | . . . . . . . . . . . . . . . . 1 Unreport Threat 4 | . . . . . . . . . . . . . . 1 . 3 Zone Layout 3 | . 1 . . . . . . . . . . . . 1 . 1 Proto ID Catalog 1 | . . . 1 . . . . . . . . . . . . . Fabricator Hacks . | . . . . . . . . . . . . . . . . . Repair Station Hacks 2 | . . . . . . . . . 1 1 . . . . . . Refit 2 | . . . . . . . . . 1 1 . . . . . . Recycling Unit Hacks 2 | . 1 . . . . . . . 1 . . . . . . . Report Inventory 1 | . . . . . . . . . 1 . . . . . . . Retrieve Components 1 | . 1 . . . . . . . . . . . . . . . Scanalyzer 8 | . . . . 1 . . . . 1 . . 1 2 . 3 . Retrieve Study 8 | . . . . 1 . . . . 1 . . 1 2 . 3 . Garrison Access Hacks 1 | . . . . . . . . . . . . . 1 . . . Seal Access 1 | . . . . . . . . . . . . . 1 . . . Unauthorized Hacks 5 | . . . . . . . . . 3 . . . 1 . . 1 Terminals . | . . . . . . . . . . . . . . . . . Fabricators . | . . . . . . . . . . . . . . . . . Repair Stations . | . . . . . . . . . . . . . . . . . Recycling Units 5 | . . . . . . . . . 3 . . . 1 . . 1 Fedlink 5 | . . . . . . . . . 3 . . . 1 . . 1 Scanalyzers . | . . . . . . . . . . . . . . . . . Garrison Access . | . . . . . . . . . . . . . . . . . Data Cores Recovered 2 | . . . . . . . . . 1 . . . . 1 . . Used . | . . . . . . . . . . . . . . . . . Hacking Detections 48 | . 7 . . 2 . . . . 8 1 . 1 9 7 5 8 Full Trace Events 1 | . . . . 1 . . . . . . . . . . . . Feedback Events . | . . . . . . . . . . . . . . . . . Feedback Blocked . | . . . . . . . . . . . . . . . . . Robot Schematics Acquired . | . . . . . . . . . . . . . . . . . Robots Built . | . . . . . . . . . . . . . . . . . Authchips . | . . . . . . . . . . . . . . . . . Time . | . . . . . . . . . . . . . . . . . Total Robot Build Rating . | . . . . . . . . . . . . . . . . . Part Schematics Acquired . | . . . . . . . . . . . . . . . . . Parts Built . | . . . . . . . . . . . . . . . . . Authchips . | . . . . . . . . . . . . . . . . . Time . | . . . . . . . . . . . . . . . . . Total Part Build Rating . | . . . . . . . . . . . . . . . . . Part Studies Acquired 8 | . . . . 1 . . . . 1 . . 1 2 . 3 . Parts Repaired . | . . . . . . . . . . . . . . . . . Time . | . . . . . . . . . . . . . . . . . Parts Recycled . | . . . . . . . . . . . . . . . . . Recycled Matter . | . . . . . . . . . . . . . . . . . Retrieved Matter . | . . . . . . . . . . . . . . . . . Retrieved Components 1 | . 1 . . . . . . . . . . . . . . . Parts Scanalyzed . | . . . . . . . . . . . . . . . . . Part Schematics Acquired . | . . . . . . . . . . . . . . . . . Parts Damaged . | . . . . . . . . . . . . . . . . . Bothacking | -11 -10 -10 -8 -6 -6 -6 -6 -5 -5 -4 -4 -4 -3 -2 -2 -2 ------------ Run | Yrd Mat Sub Scr Fac Low Low Zio Pro Fac Fac Was Fac Res Res Qua Frg Used RIF Installer . | . . . . . . . . . . . . . . . . . Robots Hacked . | . . . . . . . . . . . . . . . . . Non-combat . | . . . . . . . . . . . . . . . . . Combat . | . . . . . . . . . . . . . . . . . Robot Hacks Applied . | . . . . . . . . . . . . . . . . . Relay Couplers Released . | . . . . . . . . . . . . . . . . . Fabnet Peak Effective % . | . . . . . . . . . . . . . . . . . Robots Rewired . | . . . . . . . . . . . . . . . . . Allies Hacked . | . . . . . . . . . . . . . . . . . Hacks Repelled . | . . . . . . . . . . . . . . . . . Allies | -11 -10 -10 -8 -6 -6 -6 -6 -5 -5 -4 -4 -4 -3 -2 -2 -2 -------- Run | Yrd Mat Sub Scr Fac Low Low Zio Pro Fac Fac Was Fac Res Res Qua Frg Total Allies . | . . . . . . . . . . . . . . . . . Largest Group . | . . . . . . . . . . . . . . . . . Highest-Rated Group . | . . . . . . . . . . . . . . . . . Highest-Rated Ally . | . . . . . . . . . . . . . . . . . Initial UFD Resources 63 | . . . . 23 23 23 23 27 27 46 46 46 50 63 63 63 Total Orders . | . . . . . . . . . . . . . . . . . Ally Attacks . | . . . . . . . . . . . . . . . . . Total Damage . | . . . . . . . . . . . . . . . . . Kills . | . . . . . . . . . . . . . . . . . Allies Corrupted . | . . . . . . . . . . . . . . . . . Allies Melted 1 | . . . . . . . . . . . . . . . . 1 Intel | -11 -10 -10 -8 -6 -6 -6 -6 -5 -5 -4 -4 -4 -3 -2 -2 -2 ------- Run | Yrd Mat Sub Scr Fac Low Low Zio Pro Fac Fac Was Fac Res Res Qua Frg Active Infowar (turns) 6198 | 73 1619 726 . 533 . . . . 869 107 42 118 362 168 211 1370 Optics 1295 | . . . . 183 . . . . . . . . . . . 1112 Sensors 1915 | . . . . . . . . . 848 107 42 118 362 168 192 78 Terrain 3203 | 73 1618 . . 533 . . . . . . . . 339 168 211 261 Structural 150 | . . . . . . . . . . . . . . . . 150 Traps 1413 | . . . . . . . . . 23 102 42 118 362 168 211 387 Seismic 727 | . 1 726 . . . . . . . . . . . . . . Cloaking 190 | . . . . . . . . . . . . . . . 50 140 Robot Analysis Total 6 | . 2 . 4 . . . . . . . . . . . . . Derelict Logs Recovered 9 | . . 1 5 . 1 . 2 . . . . . . . . . Drone Launches . | . . . . . . . . . . . . . . . . . Drone Recoveries . | . . . . . . . . . . . . . . . . . Exploration | -11 -10 -10 -8 -6 -6 -6 -6 -5 -5 -4 -4 -4 -3 -2 -2 -2 ------------- Run | Yrd Mat Sub Scr Fac Low Low Zio Pro Fac Fac Was Fac Res Res Qua Frg Turns Passed 14181 | 149 1621 2087 3680 815 498 484 1050 332 901 107 42 118 362 168 211 1556 Spaces Moved 10385 | 52 683 745 1525 341 360 350 808 257 1461 258 119 194 800 537 411 1484 Core 248 | 3 . . . . . . . . 16 . . . . . . 229 Treads 3107 | 49 683 745 1457 125 . . . . . . . . . . . 48 Legs 2188 | . . . . 187 360 350 808 257 15 . . . . . . 211 Wheels 383 | . . . 68 29 . . . . . . . . . . . 286 Hover 2598 | . . . . . . . . . 77 . . 63 800 537 411 710 Flight 1861 | . . . . . . . . . 1353 258 119 131 . . . . Fastest Speed 19 | 50 160 240 140 118 117 117 117 122 19 35 35 29 20 20 20 19 Average Speed 113 | 153 209 240 239 168 117 117 121 122 35 35 35 39 24 20 27 65 Slowest Speed 320 | 160 240 240 320 245 118 117 122 122 150 35 35 200 33 20 86 280 Overloaded Moves 294 | . . . . . . . . . . . . . . . . 294 Propulsion Burnouts . | . . . . . . . . . . . . . . . . . Robots Hopped 2 | . . . . . . . . . 2 . . . . . . . Potential Cave-ins . | . . . . . . . . . . . . . . . . . Cave-ins Triggered . | . . . . . . . . . . . . . . . . . Exploration Rate (%) 44 | 4 94 42 87 9 57 60 84 42 39 9 85 7 33 20 47 41 Regions Visited 16 Branch Regions 8 Pre-discovered Areas 6 | . . 2 2 . . . 1 . 1 . . . . . . . Known Exits Taken 6 | . 1 . . . . . . . 1 . . 1 1 1 1 . Unknown Exits Taken 8 | 1 . 1 1 1 1 1 1 1 . . . . . . . . Scrap Searched 20 | . . . 11 . 3 . 3 3 . . . . . . . . Spaces Dug 40 | . . . . . . . . . 18 1 . . 4 2 5 10 Terrain Destroyed 89 | . . . . . . . . . 18 1 . . 4 2 5 59 Melee 40 | . . . . . . . . . 18 1 . . 4 2 5 10 Projectile 48 | . . . . . . . . . . . . . . . . 48 AOE . | . . . . . . . . . . . . . . . . . Terrain Rammed . | . . . . . . . . . . . . . . . . . Walls Destroyed . | . . . . . . . . . . . . . . . . . Machines Disabled . | . . . . . . . . . . . . . . . . . Actions | -11 -10 -10 -8 -6 -6 -6 -6 -5 -5 -4 -4 -4 -3 -2 -2 -2 --------- Run | Yrd Mat Sub Scr Fac Low Low Zio Pro Fac Fac Was Fac Res Res Qua Frg Total 11970 | 82 797 878 1555 475 425 410 873 270 1731 273 118 233 954 580 493 1823 Wait 592 | . 30 16 11 27 47 51 54 . 137 . . 23 82 20 57 37 Move 10366 | 51 682 744 1524 340 359 349 807 256 1456 258 118 193 799 536 410 1484 Hop 2 | . . . . . . . . . 2 . . . . . . . Pick Up 132 | 6 20 13 6 14 5 1 4 5 11 4 . 2 18 2 6 15 Fast Attach 95 | 7 2 1 2 12 . 1 2 . 9 2 . 7 3 2 . 45 Attach 70 | . 2 8 . 10 1 1 . . 20 3 . 1 4 1 1 18 Detach 15 | . . . 1 1 . . . . 3 1 . . . . 2 7 Swap 76 | . 7 12 2 3 . . 2 . 2 . . . 22 6 8 12 Drop 142 | . 11 9 9 9 6 . 4 5 20 3 . 7 21 5 3 30 Fire 357 | 18 43 75 . 58 7 7 . 4 . . . . . . . 145 Melee 104 | . . . . . . . . . 63 2 . . 5 8 6 20 Ram 1 | . . . . 1 . . . . . . . . . . . . Kick . | . . . . . . . . . . . . . . . . . Crush . | . . . . . . . . . . . . . . . . . Escape Stasis 8 | . . . . . . . . . 8 . . . . . . . Rewire . | . . . . . . . . . . . . . . . . . Trap . | . . . . . . . . . . . . . . . . . Miscellaneous 10 | . . . . . . . . . . . . . . . . 10 Route ------- -11/Scrapyard -10/Materials (discovered 5 exits: [*Mat x3] / *Min / *Sub) -10/Subcaves (discovered 3 exits: [*Mat x2] / *Scr) -8/Scraptown (discovered 2 exits: *Fac x2) -6/Factory -6/Lower Caves -6/Lower Caves -6/Zion -5/Proximity Caves -5/Factory (discovered 2 exits: *Fac / Upp) -4/Factory -4/Waste -4/Factory -3/Research (discovered 3 exits: *Res x2 / *Tes) -2/Research (discovered 2 exits: *Qua x2) -2/Quarantine (discovered 2 exits: *Sec / *Frg) -2/Protoforge History --------- Turn | Location | Event 33 | -11/Scrapyard | Discovered new exit (range 15) 150 | -11/Scrapyard | Entered Materials 303 | -10/Materials | Build established: Mutant 323 | -10/Materials | Discovered new exit (range 4) 506 | -10/Materials | Discovered new exit (range 15) 695 | -10/Materials | Identified exit to Mines 826 | -10/Materials | Discovered new exit (range 16) 1018 | -10/Materials | Discovered new exit (range 4) 1758 | -10/Materials | Discovered new exit (range 4) 1769 | -10/Materials | Identified exit to Subcaves 1771 | -10/Materials | Entered Subcaves 1771 | -10/Subcaves | Learned location of Zion (-6) 1772 | -10/Subcaves | Approached by a straggling Scientist 1959 | -10/Subcaves | Discovered new exit (range 9) 2130 | -10/Subcaves | Shifting Twisted Machinery released Sub. Machine Gun 2135 | -10/Subcaves | Scientist uncovered a shortcut to Scraptown 2223 | -10/Subcaves | Shifting Twisted Machinery released Scrap Shield 2528 | -10/Subcaves | Lost 3 parts (1p1n1u) 2669 | -10/Subcaves | Discovered new exit (range 15) 2701 | -10/Subcaves | Core integrity fell below 50% 2863 | -10/Subcaves | Build established: Scavenger-Mutant 3286 | -10/Subcaves | Core integrity fell below 20% 3511 | -10/Subcaves | Visited Clippyterm 3518 | -10/Subcaves | Learned location of Section 7 (-2) 3518 | -10/Subcaves | Learned Factory emergency access door positions 3746 | -10/Subcaves | Build established: Mutant 3858 | -10/Subcaves | Entered Scraptown 3858 | -8/Scraptown | System corruption cleaned by C-Scrubber 4249 | -8/Scraptown | Scanned Subdweller tech in exchange for log data 4259 | -8/Scraptown | Learned Research emergency access door positions 4261 | -8/Scraptown | Learned 12 Research zone layouts 4264 | -8/Scraptown | Learned location of Armory (-3) 4266 | -8/Scraptown | Learned Factory terminal intel 4269 | -8/Scraptown | Learned location of Extension (-4) 4355 | -8/Scraptown | Visited Comm Corps 4398 | -8/Scraptown | Visited Scrapoid Research Area 4415 | -8/Scraptown | Visited SPCMW 4787 | -8/Scraptown | Visited Symbiants 4840 | -8/Scraptown | Visited Bundlers 5040 | -8/Scraptown | Visited UFD Registry 5040 | -8/Scraptown | Registered with UFD as "Matrixnade" 5097 | -8/Scraptown | Visited Science Guys 5180 | -8/Scraptown | Visited Abandonware Association 5216 | -8/Scraptown | Learned abandonware demo "POISON.EXE" 5275 | -8/Scraptown | Visited Curators Association 5395 | -8/Scraptown | Delivered Scrap Shield to a Scientist 5639 | -8/Scraptown | Visited Observation Area 5740 | -8/Scraptown | Visited Analyses Database 5823 | -8/Scraptown | Visited Junk Repository 5902 | -8/Scraptown | Visited Junk Repository 5997 | -8/Scraptown | Visited Scrap Suit Storage 6196 | -8/Scraptown | Visited Cyclists 6218 | -8/Scraptown | Entered Cyclist Reading Room 6276 | -8/Scraptown | Visited Shadow of the Wyrm 6468 | -8/Scraptown | Guru changed UFD alias to "Gaussface" 6539 | -8/Scraptown | Discovered new exit (range 13) 7447 | -8/Scraptown | Met Optimus 7447 | -8/Scraptown | Accepted into 0bPrime 7534 | -8/Scraptown | Discovered new exit (range 3) 7538 | -8/Scraptown | Entered Factory 7538 | -6/Factory | Evolved 8 slots: Power x1, Propulsion x4, Utility x3 7540 | -6/Factory | Loaded intel: 26 terminal locations 8123 | -6/Factory | Lost 7 parts (2n3u2w) 8155 | -6/Factory | Build established: Scavenger-Mutant 8329 | -6/Factory | Discovered new exit (range 11) 8353 | -6/Factory | Entered Lower Caves 8355 | -6/Lower Caves | UFD Scientist delivered a prototype 8357 | -6/Lower Caves | Found Prototype Protection 8500 | -6/Lower Caves | Attracted the attention of an 0b10 outpost 8790 | -6/Lower Caves | Learned location of 1 exit from Factory 8833 | -6/Lower Caves | Discovered new exit (range 15) 8851 | -6/Lower Caves | Entered another Lower Caves area 9317 | -6/Lower Caves | Discovered new exit (range 13) 9335 | -6/Lower Caves | Entered Zion 9393 | -6/Zion | System corruption cleaned by Quarantine Array 9512 | -6/Zion | Visited the Megawrench Repair Shop 9512 | -6/Zion | Megawrench repaired 10 parts 9575 | -6/Zion | Found GAL Module 9915 | -6/Zion | Learned Factory terminal intel 9960 | -6/Zion | Turned away by Imprinter 10242 | -6/Zion | Received a hallucinogenic algorithm 10242 | -6/Zion | Ran a hallucination algorithm 10369 | -6/Zion | Discovered new exit (range 13) 10385 | -6/Zion | Entered Proximity Caves 10657 | -5/Proximity Caves | Discovered new exit (range 15) 10717 | -5/Proximity Caves | Entered Factory 10717 | -5/Factory | Evolved 2 slots: Propulsion x1, Utility x1 10718 | -5/Factory | Identified exit to Upper Caves 10719 | -5/Factory | Loaded intel: 26 terminal locations 10758 | -5/Factory | Identified Enh. Scrap Shield 10775 | -5/Factory | Loaded intel: 8 recycling unit locations 10933 | -5/Factory | Lost 3 parts (1p2n) 10974 | -5/Factory | Learned location of Protoforge (-2) 11319 | -5/Factory | System corruption reached 10% 11368 | -5/Factory | Lost 7 parts (4n1u2w) 11424 | -5/Factory | Build established: Hacker-Mutant 11607 | -5/Factory | Discovered new exit (range 15) 11612 | -5/Factory | Identified exit to Factory 11618 | -5/Factory | Entered another Factory area 11618 | -4/Factory | Evolved 2 slots: Propulsion x1, Utility x1 11725 | -4/Factory | Sucked down chute 11725 | -4/Factory | Entered Waste 11738 | -4/Waste | Spotted C-40 Crusher 11740 | -4/Waste | EMP discharged 11746 | -4/Waste | Spotted C-40 Crusher 11754 | -4/Waste | Spotted C-40 Crusher 11757 | -4/Waste | Spotted C-40 Crusher 11758 | -4/Waste | Spotted C-40 Crusher 11758 | -4/Waste | Spotted C-40 Crusher 11758 | -4/Waste | Discovered new exit (range 14) 11766 | -4/Waste | Identified exit to Factory 11767 | -4/Waste | Entered Factory 11879 | -4/Factory | Discovered new exit (range 9) 11882 | -4/Factory | Identified exit to Research 11885 | -4/Factory | Entered Research 11885 | -3/Research | Evolved 2 slots: Utility x2 11886 | -3/Research | Identified exit to Research 11991 | -3/Research | Discovered new exit (range 15) 11996 | -3/Research | Identified exit to Testing 12115 | -3/Research | Found Prototype Processor 12136 | -3/Research | Identified Exp. Signal Interpreter 12176 | -3/Research | Found Prototype Device 12185 | -3/Research | Identified Adv. EM Shield 12201 | -3/Research | Loaded intel: 5 recycling unit locations 12209 | -3/Research | Build established: Scout 12231 | -3/Research | Discovered exit to Research (range 8) 12247 | -3/Research | Entered another Research area 12247 | -2/Research | Evolved 2 slots: Power x1, Utility x1 12343 | -2/Research | Spotted B-90 Cyclops 12359 | -2/Research | Identified exit to Quarantine 12415 | -2/Research | Entered Quarantine 12527 | -2/Quarantine | Found Alien Slashing Weapon 12529 | -2/Quarantine | Identified Sigix Broadsword 12586 | -2/Quarantine | Spotted Fortress 12601 | -2/Quarantine | Discovered new exit (range 7) 12601 | -2/Quarantine | Discovered new exit (range 6) 12602 | -2/Quarantine | Identified exit to Protoforge 12603 | -2/Quarantine | Identified exit to Section 7 12626 | -2/Quarantine | Entered Protoforge 12662 | -2/Protoforge | Superfortress began startup sequence 12696 | -2/Protoforge | Spotted AP7-3 12696 | -2/Protoforge | Spotted AP7-3 12700 | -2/Protoforge | Spotted Overlord 12700 | -2/Protoforge | Spotted EXE-6 12700 | -2/Protoforge | Spotted EXE-6 12702 | -2/Protoforge | Spotted SKR-2 12702 | -2/Protoforge | Spotted SKR-2 12703 | -2/Protoforge | Spotted SKR-2 12717 | -2/Protoforge | UFD initiated attack on Protoforge (Readiness: Low) 12717 | -2/Protoforge | Loaded intel: 3 recycling unit locations 12735 | -2/Protoforge | Lost 3 parts (2n1u) 12744 | -2/Protoforge | Found Prototype Processor 12744 | -2/Protoforge | Identified Exp. Core Analyzer 12757 | -2/Protoforge | Optimus greeted in Protoforge 12763 | -2/Protoforge | Found 0bPrime Scrap Suit 12774 | -2/Protoforge | Found UFD Drillbomb 12795 | -2/Protoforge | Spotted Hotshot 12795 | -2/Protoforge | Spotted Hotshot 12795 | -2/Protoforge | Spotted Hotshot 12813 | -2/Protoforge | Lost 7 allies 12820 | -2/Protoforge | Spotted Hotshot 12820 | -2/Protoforge | Spotted Hotshot 12821 | -2/Protoforge | Spotted Hotshot 12842 | -2/Protoforge | Installed UFD Drillbomb at designated target 12842 | -2/Protoforge | UFD reported confirmed Drillbomb installation 12871 | -2/Protoforge | Lost 4 parts (1p2n1u) 12905 | -2/Protoforge | Spotted Executioner 12905 | -2/Protoforge | Spotted Executioner 12912 | -2/Protoforge | Released all parts (10) 12942 | -2/Protoforge | Met 7R-MNS 13067 | -2/Protoforge | Lost 6 allies 13073 | -2/Protoforge | Found Exp. Core Analyzer 13215 | -2/Protoforge | Spotted Executioner 13246 | -2/Protoforge | Lost 3 allies 13251 | -2/Protoforge | Spotted Hotshot 13251 | -2/Protoforge | Spotted Hotshot 13268 | -2/Protoforge | Found Scrap Suit 13284 | -2/Protoforge | Lost 3 allies 13303 | -2/Protoforge | Spotted Striker 13304 | -2/Protoforge | Spotted Executioner 13305 | -2/Protoforge | Spotted Executioner 13318 | -2/Protoforge | Core integrity fell below 50% 13319 | -2/Protoforge | Spotted Executioner 13320 | -2/Protoforge | Build established: Scavenger-Mutant 13323 | -2/Protoforge | Spotted Executioner 13331 | -2/Protoforge | Lost 5 allies 13343 | -2/Protoforge | Destroyed Executioner 13376 | -2/Protoforge | Found Scrap Suit 13379 | -2/Protoforge | Spotted Striker 13387 | -2/Protoforge | Spotted Striker 13396 | -2/Protoforge | P-80 Master assimilated allied 02F35-D 13419 | -2/Protoforge | Spotted Executioner 13422 | -2/Protoforge | Spotted Striker 13424 | -2/Protoforge | Spotted Striker 13431 | -2/Protoforge | Spotted Executioner 13469 | -2/Protoforge | Lost 7 allies 13500 | -2/Protoforge | Lost 8 parts (2p5n1w) 13540 | -2/Protoforge | Spotted Striker 13541 | -2/Protoforge | Spotted Executioner 13565 | -2/Protoforge | Core integrity fell below 20% 13589 | -2/Protoforge | Found Scrap Suit 13592 | -2/Protoforge | Spotted Executioner 13593 | -2/Protoforge | Spotted Striker 13595 | -2/Protoforge | Lost 3 parts (1n1u1w) 13595 | -2/Protoforge | Spotted Striker 13596 | -2/Protoforge | Spotted Executioner 13598 | -2/Protoforge | Lost 12 allies 13613 | -2/Protoforge | Destroyed Striker 13629 | -2/Protoforge | Spotted Executioner 13632 | -2/Protoforge | Found Exp. Core Analyzer 13635 | -2/Protoforge | Spotted Executioner 13637 | -2/Protoforge | Lost 4 allies 13670 | -2/Protoforge | System corruption reached 10% 13685 | -2/Protoforge | Spotted Executioner 13690 | -2/Protoforge | Found Prototype Processor 13690 | -2/Protoforge | Identified Exp. Targeting Computer 13696 | -2/Protoforge | Destroyed Executioner 13699 | -2/Protoforge | Lost 5 allies 13708 | -2/Protoforge | Lost 3 parts (2u1w) 13713 | -2/Protoforge | Spotted Striker 13736 | -2/Protoforge | Spotted Executioner 13750 | -2/Protoforge | Spotted Executioner 13762 | -2/Protoforge | Destroyed Executioner 13777 | -2/Protoforge | Spotted Hotshot 13777 | -2/Protoforge | Spotted Hotshot 13778 | -2/Protoforge | Spotted Hotshot 13790 | -2/Protoforge | Destroyed Hotshot 13806 | -2/Protoforge | UFD reported confirmed Drillbomb installation 13809 | -2/Protoforge | Spotted Striker 13811 | -2/Protoforge | Spotted Striker 13845 | -2/Protoforge | Lost 3 allies 13855 | -2/Protoforge | Destroyed Hotshot 13864 | -2/Protoforge | Build established: Scavenger-Scrapper 13918 | -2/Protoforge | Spotted Executioner 13918 | -2/Protoforge | Spotted Striker 14003 | -2/Protoforge | Lost 7 allies 14005 | -2/Protoforge | UFD reported confirmed Drillbomb installation 14078 | -2/Protoforge | UFD reported confirmed Drillbomb installation 14079 | -2/Protoforge | Spotted Striker 14079 | -2/Protoforge | Spotted Executioner 14116 | -2/Protoforge | Spotted Executioner 14116 | -2/Protoforge | Spotted Striker 14137 | -2/Protoforge | Destroyed Striker 14144 | -2/Protoforge | UFD reported confirmed Drillbomb installation 14178 | -2/Protoforge | Lost 5 allies 14182 | -2/Protoforge | Destroyed by H-88 Terminator with KE Penetrator Last Messages --------------- 14168_ Slug penetrates Wall. 14169_ Slug penetrates P-80 Master. 14169_ P-80 Master suffers critical hit (Destroy). 14169_ Destroyed Imp. Antigrav System. 14169_ Slug penetrates Earth. 14169_ P-80 Master destroyed. 14171_ Slug penetrates Wall. 14173_ Ovr. Medium Treads destroyed. 14173_ Slug penetrates Wall. 14175_ Ovr. Medium Treads destroyed. 14176_ Slug penetrates P-80 Master. 14176_ Slug penetrates Wall. 14176_ Slug penetrates P-80 Master. 14178_ Slug penetrates Wall. 14179_ System corrupted: Matter fused (-5). 14181_ Slug penetrates P-80 Master. 14181_ Slug penetrates Wall. 14181_ Slug penetrates P-80 Master. 14181_ Slug penetrates Wall. Map ----- +----------------------------------------------------+ | ## ?? ####### # ##??# """"""" " | | ## ??????? ?? ######## ##??# """ " " | | ##????? ?? ######## ##??# " " | | ##?????? ? ?? ##???### ##??# "" | | ## ????####### ! ##????## ##?## "" "" | | ###############* ######### ##### "" "" | | "#########?#### ######"##+##### "" """ | | ##??#?#??###### ### ## " " | | "######### #### #### ## " | | ###"""########"##" ###" "" """ ## " " &" | | ""S"" # % ## # T""" "# " ""% % | | %!=%""" # "" """#"###"""# % % | | %%%%] %" % = %"""""=!*"%""# % " %% | | =%! % "% !*%!!%%%&%%%!%% %" & % % % | | % ! %% % % %%*%!%%%% [%%%% %% % & | | % "%% % %%&[!%/%%%% % % " "" % | | % " %[%%%*!&#""#### ""# " "" | | [*[%%% " % %==############ # "" " | | !==%[!"%"" % % % ####???####### | | %*=% % ! ###?#?##?##??# "" | | !%%*% % % =###### #####?# " "" | | ! %= % % #####;### #??# " "" | | % =% ! %! !p ;#??## " " | | [%""""""""""""/"#""###"###;%;+############# ##### | | ! # "" ######![*%i ; #??####???? | | ! # ##" """" ##?##* @=|""########???????????? | | ! ## ##" """""" ##?##%= " ""##??##?????????????? | | # #### # " """"" ####;# " T"###?????????#??????? | | ########## ### ## ""##?????????????????? | | # # ## ### ##?#????#??????????? | | # # # #?####T#####?????????????????? | | # # ##??###########????????????????? | | # " " # ##?#??#####????????????#???????? | | # " ###########?#???????????????????????????? | | # "" " ###########??##?#??????#?#?#????????????? | | # "" ##???####????#?#????????????????????????? | | + ###????????#?#?????#?????#???#??????????? | | # ####?##????#?#?????#?##???????#?????????? | | ###########?#??###???????????????????????????????? | | # ????##???#???##????????##?????#?????????????? | | # """ ??###??####???????????????????????????????? | | # ???????##??#????????????#??????????????????????? | | #??""" ??##??????#???????????????????????????????? | | +????????##??????#???????????????????????????????? | | # ?"?? ##??????????????????????????????????????? | | #????"???##?#????????????????????????????????????? | | # ???? ?##??????????????????????????????????????? | | #?? ? ? ###?????????????????????????????????????? | | ############?????????????????????????????????????? | | ############??#??????????????????????????????????? | +----------------------------------------------------+ Best States ------------- Heat Dissipation 101 Energy Generation 68 Energy Capacity 720 Matter Stores 300 Matter Capacity 300 Sight Range 23 Robot Scan Range 16 Terrain Scan Range 20 Terrain Scan Density 210 Cloak Strength 4 Armor Coverage 800 Propulsion Shielding 90 Phase Shifting 15 Evasion (%) 75 Targeting Accuracy 12 Target Analysis 6 Core Analysis 8 Armor Integrity Analysis 40 Recoil Reduction 6 Offensive Hacking 26 Defensive Hacking 14 Item Schematics ----------------- None Robot Schematics ------------------ None Fabricated ------------ Nothing Repaired ---------- Nothing Studied --------- Cesium-ion Thruster | -6/Factory | Hacked VTOL Module | -5/Factory | Hacked Field Propulsion Drive | -4/Factory | Hacked Enh. Force Lance | -3/Research | Hacked Imp. Linear Gravjet | -3/Research | Hacked Imp. Gravmag System | -2/Quarantine | Hacked Lgt. Quantum Reactor | -2/Quarantine | Hacked Linear Gravjet | -2/Quarantine | Hacked Alien Tech Used ----------------- Sigix Broadsword Achievements -------------- Fine I'll Do It Myself Loot Taster Low-level Research We Are One Challenges ------------ None Game ------ Seed MiniCompactLoader Manual? 0 Play Time 03:30:07 Cumulative 125.6 hours Start 2026.07.29 @ 00:33:27 End 2026.07.29 @ 04:18:59 Sessions 1 Manual Loads 0 Difficulty Rogue Special Mode None Game No. 139 Rogue 85 Adventurer 54 Explorer 0 Win Type - Total 3 Types 2/0/0/1/0/0/0/0/0/0 Lore% 53 Gallery% 51 Achievement% 46 Wizard Run 0 Options --------- Layout 1 ASCII 0 Keyboard 0 Movement Mouse Keybinds 1 Fullscreen 1 Font 32/Tamsyn Map View 50x35 Zoom Use 0% Tactical HUD 1 Map Filters NONE Filters NONE Steam 1 RUN: 754ebe66-bcdf-4861-bc9a-48b85e7169f3